fUSD/lending_fUSD_20240514
["ID","MTS","AMOUNT","RATE_DAILY","PERIOD"]
[327005733,1715705439278,-500.0,0.00012973,2]
[327005734,1715705439287,-198.00279924,0.00012973,2]
[327005735,1715705439296,-500.0,0.00012973,2]
[327005736,1715705439306,-500.0,0.00012973,2]
[327005737,1715705439316,-500.0,0.00012973,2]
[327005738,1715705439326,-500.0,0.00012973,2]
[327005739,1715705439336,-500.0,0.00012973,2]
[327005740,1715705439346,-500.0,0.00012973,2]
[327005741,1715705439357,-1034.0,0.00012973,2]
[327005742,1715705439366,-500.0,0.00012973,2]
[327005743,1715705439376,-500.0,0.00012973,2]
[327005744,1715705439386,-500.0,0.00012973,2]
[327005745,1715705439395,-500.0,0.00012973,2]
[327005746,1715705439405,-5242.67,0.00012973,2]
[327005747,1715705439414,-500.0,0.00012973,2]
[327005748,1715705439423,-500.0,0.00012973,2]
[327005749,1715705439433,-1071.44,0.00012973,2]
[327005750,1715705439442,-260.41,0.00012973,2]
[327005751,1715705439451,-501.18,0.00012973,2]
[327005752,1715705439460,-500.0,0.00012973,2]
[327005753,1715705439470,-500.0,0.00012973,2]
[327005754,1715705439479,-500.0,0.00012973,2]
[327005755,1715705439488,-500.0,0.00012973,2]
[327005756,1715705439497,-500.0,0.00012973,2]
[327005757,1715705439508,-896.74,0.00012974,2]
[327005758,1715705439518,-502.29,0.00012974,2]
[327005759,1715705439526,-833.68,0.00012974,2]
[327005760,1715705439536,-500.0,0.00012974,2]
[327005761,1715705439544,-500.0,0.00012974,2]
[327005762,1715705439554,-500.0,0.00012974,2]
[327005763,1715705439563,-500.0,0.00012974,2]
[327005764,1715705439573,-1376.25,0.00012974,2]
[327005765,1715705439583,-500.0,0.00012974,2]
[327005766,1715705439592,-500.0,0.00012974,2]
[327005767,1715705439603,-837.83,0.00012974,2]
[327005768,1715705439613,-500.0,0.00012974,2]
[327005769,1715705439622,-500.0,0.00012974,2]
[327005770,1715705439632,-500.0,0.00012974,2]
[327005772,1715705439642,-368.65769854,0.00012974,2]
[327005773,1715705440080,-131.34230146,0.00012974,2]
[327005774,1715705440090,-456.30533549,0.00012974,2]
[327005775,1715705440105,-43.69466451,0.00012974,2]
[327005776,1715705440114,-818.5,0.00012976,2]
[327005777,1715705440123,-500.0,0.00012976,2]
[327005778,1715705440131,-268.63993646,0.00012976,2]
[327005779,1715705440140,-500.0,0.00012976,2]
[327005780,1715705440150,-743.43,0.00012976,2]
[327005781,1715705440160,-500.0,0.00012976,2]
[327005782,1715705440170,-538.64,0.00012976,2]
[327005783,1715705440179,-500.0,0.00012976,2]
[327005784,1715705440189,-500.0,0.00012976,2]
[327005785,1715705440199,-500.0,0.00012976,2]
[327005786,1715705440208,-500.0,0.00012976,2]
[327005787,1715705440217,-500.0,0.00012976,2]
[327005788,1715705440226,-500.0,0.00012976,2]
[327005789,1715705440236,-500.0,0.00012976,2]
[327005790,1715705440245,-500.0,0.00012976,2]
[327005791,1715705440254,-500.0,0.00012976,2]
[327005792,1715705440264,-500.0,0.00012976,2]
[327005793,1715705440273,-500.0,0.00012976,2]
[327005794,1715705440283,-500.0,0.00012976,2]
[327005795,1715705440293,-500.0,0.00012976,2]
[327005796,1715705440302,-150.0,0.00012976,2]
[327005797,1715705440311,-500.0,0.00012976,2]
[327005798,1715705440320,-500.0,0.00012976,2]
[327005799,1715705440330,-500.0,0.00012976,2]
[327005800,1715705440339,-302.32252036,0.00012976,2]
[327005801,1715705440351,-500.0,0.00012976,2]
[327005802,1715705440361,-1225.34,0.00012976,2]
[327005803,1715705440370,-500.0,0.00012976,2]
[327005804,1715705440379,-1013.03,0.00012976,2]
[327005805,1715705440388,-500.0,0.00012976,2]
[327005806,1715705440398,-500.0,0.00012976,2]
[327005807,1715705440407,-500.0,0.00012977,2]
[327005808,1715705440417,-500.0,0.00012977,2]
[327005809,1715705440427,-500.0,0.00012977,2]
[327005810,1715705440436,-500.0,0.00012977,2]
[327005811,1715705440445,-500.0,0.00012977,2]
[327005812,1715705440455,-500.0,0.00012977,2]
[327005813,1715705440464,-601.27488243,0.00012977,2]
[327005814,1715705440473,-500.0,0.00012977,2]
[327005815,1715705440483,-500.0,0.00012977,2]
[327005816,1715705440492,-500.0,0.00012977,2]
[327005817,1715705440501,-500.0,0.00012977,2]
[327005818,1715705440511,-500.0,0.00012977,2]
[327005819,1715705440520,-500.0,0.00012977,2]
[327005820,1715705440529,-782.06,0.00012977,2]
[327005821,1715705440539,-500.0,0.00012977,2]
[327005822,1715705440548,-500.0,0.00012977,2]
[327005823,1715705440557,-500.0,0.00012977,2]
[327005824,1715705440567,-817.93536202,0.00012978,2]
[327005825,1715705440576,-254.92092733,0.00012979,2]
[327005826,1715705440585,-818.5,0.00012979,2]
[327005827,1715705440594,-818.5,0.00012979,2]
[327005828,1715705440608,-818.5,0.00012979,2]
[327005829,1715705440617,-500.0,0.00012979,2]
[327005830,1715705440628,-500.0,0.00012979,2]
[327005831,1715705440637,-79.41443949,0.00012979,2]
[327005839,1715705441022,-500.0,0.00012972,2]
[327005840,1715705441033,-500.0,0.00012973,2]
[327005841,1715705441044,-420.58556051,0.00012979,2]
[327005842,1715705441054,-500.0,0.00012979,2]
[327005843,1715705441064,-198.57554949,0.00012979,2]
[327005844,1715705441098,-301.42445051,0.00012979,2]
[327005845,1715705441113,-500.0,0.00012979,2]
[327005846,1715705441123,-743.43,0.00012979,2]
[327005847,1715705441132,-743.43,0.00012979,2]
[327005848,1715705441142,-743.43,0.00012979,2]
[327005849,1715705441151,-500.0,0.00012979,2]
[327005850,1715705441161,-500.0,0.00012979,2]
[327005851,1715705441171,-500.0,0.00012979,2]
[327005852,1715705441181,-500.0,0.00012979,2]
[327005853,1715705441191,-500.0,0.00012979,2]
[327005854,1715705441200,-500.0,0.00012979,2]
[327005855,1715705441209,-500.0,0.00012979,2]
[327005856,1715705441218,-500.0,0.00012979,2]
[327005857,1715705441228,-500.0,0.00012979,2]
[327005858,1715705441237,-500.0,0.00012979,2]
[327005859,1715705441246,-500.0,0.00012979,2]
[327005860,1715705441256,-500.0,0.00012979,2]
[327005861,1715705441265,-500.0,0.00012979,2]
[327005862,1715705441275,-500.0,0.00012979,2]
[327005863,1715705441284,-500.0,0.00012979,2]
[327005864,1715705441294,-500.0,0.00012979,2]
[327005865,1715705441304,-500.0,0.00012979,2]
[327005866,1715705441313,-500.0,0.00012979,2]
[327005867,1715705441322,-500.0,0.00012979,2]
[327005868,1715705441332,-500.0,0.00012979,2]
[327005869,1715705441341,-500.0,0.00012979,2]
[327005870,1715705441354,-500.0,0.00012979,2]
[327005871,1715705441363,-500.0,0.00012979,2]
[327005872,1715705441372,-500.0,0.00012979,2]
[327005873,1715705441381,-500.0,0.00012979,2]
[327005874,1715705441390,-500.0,0.00012979,2]
[327005875,1715705441399,-500.0,0.00012979,2]
[327005876,1715705441408,-500.0,0.00012979,2]
[327005877,1715705441417,-500.0,0.00012979,2]
[327005878,1715705441427,-500.0,0.00012979,2]
[327005879,1715705441436,-500.0,0.00012979,2]
[327005880,1715705441445,-500.0,0.00012979,2]
[327005881,1715705441455,-500.0,0.00012979,2]
[327005882,1715705441465,-500.0,0.00012979,2]
[327005883,1715705441475,-500.0,0.00012979,2]
[327005884,1715705441484,-500.0,0.00012979,2]
[327005885,1715705441494,-500.0,0.00012979,2]
[327005886,1715705441502,-500.0,0.00012979,2]
[327005887,1715705441512,-500.0,0.00012979,2]
[327005888,1715705441521,-500.0,0.00012979,2]
[327005889,1715705441531,-500.0,0.00012979,2]
[327005890,1715705441540,-500.0,0.00012979,2]
[327005891,1715705441550,-500.0,0.00012979,2]
[327005892,1715705441559,-208.12578491,0.00012979,2]
[327005893,1715705441572,-310.11421509,0.00012979,2]
[327005894,1715705441582,-305.72500491,0.00012979,2]
[327005895,1715705441594,-212.51499509,0.00012979,2]
[327005896,1715705441608,-518.24,0.00012979,2]
[327005897,1715705441618,-206.92509739,0.00012979,2]
[327005898,1715705441631,-293.07490261,0.00012979,2]
[327005899,1715705441640,-516.7,0.00012979,2]
[327005900,1715705441650,-50.53848555,0.00012979,2]
[327005901,1715705441673,-317.59271639,0.00012979,2]
[327005902,1715705441683,-500.0,0.00012979,2]
[327005903,1715705441692,-500.0,0.00012979,2]
[327005904,1715705441702,-500.0,0.00012979,2]
[327005905,1715705441713,-500.0,0.00012979,2]
[327005906,1715705441723,-500.0,0.00012979,2]
[327005907,1715705441733,-468.2,0.00012979,2]
[327005908,1715705441743,-528.6,0.00012979,2]
[327005909,1715705441754,-500.0,0.00012979,2]
[327005910,1715705441764,-500.0,0.00012979,2]
[327005911,1715705441773,-500.0,0.00012979,2]
[327005912,1715705441783,-545.94774549,0.00012979,2]
[327005913,1715705441793,-444.9,0.00012979,2]
[327005914,1715705441804,-500.0,0.00012979,2]
[327005915,1715705441814,-500.0,0.00012979,2]
[327005916,1715705441823,-500.0,0.00012979,2]
[327005917,1715705441832,-500.0,0.00012979,2]
[327005918,1715705441842,-625.03569018,0.00012979,2]
[327005919,1715705441855,-324.55706316,0.00012979,2]
[327005920,1715705441864,-289.7,0.00012979,2]
[327005921,1715705441873,-500.0,0.00012979,2]
[327005922,1715705441882,-500.0,0.00012979,2]
[327005923,1715705441891,-500.0,0.00012979,2]
[327005924,1715705441900,-500.0,0.00012979,2]
[327005925,1715705441909,-500.0,0.00012979,2]
[327005926,1715705441918,-317.1,0.00012979,2]
[327005927,1715705441927,-500.0,0.00012979,2]
[327005928,1715705441937,-500.0,0.00012979,2]
[327005929,1715705441946,-500.0,0.00012979,2]
[327005930,1715705441956,-500.0,0.00012979,2]
[327005931,1715705441965,-500.0,0.00012979,2]
[327005932,1715705441975,-500.0,0.00012979,2]
[327005933,1715705441984,-1772.54,0.00012979,2]
[327005934,1715705441993,-1772.54,0.00012979,2]
[327005935,1715705442003,-1772.54,0.00012979,2]
[327005936,1715705442012,-500.0,0.00012979,2]
[327005937,1715705442022,-500.0,0.00012979,2]
[327005938,1715705442031,-500.0,0.00012979,2]
[327005939,1715705442040,-500.0,0.00012979,2]
[327005940,1715705442050,-500.0,0.00012979,2]
[327005941,1715705442060,-500.0,0.00012979,2]
[327005942,1715705442070,-518.93,0.00012979,2]
[327005943,1715705442079,-500.0,0.00012979,2]
[327005944,1715705442088,-500.0,0.00012979,2]
[327005945,1715705442098,-526.2,0.00012979,2]
[327005946,1715705442111,-226.7,0.00012979,2]
[327005947,1715705442120,-676.55,0.00012979,2]
[327005948,1715705442129,-676.55,0.00012979,2]
[327005949,1715705442138,-676.55,0.00012979,2]
[327005950,1715705442150,-533.32546256,0.00012979,2]
[327005951,1715705442160,-500.0,0.00012979,2]
[327005952,1715705442169,-500.0,0.00012979,2]
[327005953,1715705442178,-500.0,0.00012979,2]
[327005954,1715705442187,-500.0,0.00012979,2]
[327005955,1715705442196,-500.0,0.00012979,2]
[327005956,1715705442205,-500.0,0.00012979,2]
[327005957,1715705442214,-500.0,0.00012979,2]
[327005958,1715705442224,-500.0,0.00012979,2]
[327005959,1715705442233,-500.0,0.00012979,2]
[327005960,1715705442243,-500.0,0.00012979,2]
[327005961,1715705442252,-311.67,0.00012979,2]
[327005962,1715705442262,-500.0,0.00012979,2]
[327005963,1715705442271,-500.0,0.00012979,2]
[327005964,1715705442281,-500.0,0.00012979,2]
[327005965,1715705442290,-500.0,0.00012979,2]
[327005966,1715705442299,-545.0,0.00012979,2]
[327005967,1715705442309,-500.0,0.00012979,2]
[327005968,1715705442319,-500.0,0.00012979,2]
[327005969,1715705442328,-500.0,0.00012979,2]
[327005970,1715705442338,-500.0,0.00012979,2]
[327005971,1715705442347,-500.0,0.00012979,2]
[327005972,1715705442360,-500.0,0.00012979,2]
[327005973,1715705442369,-500.0,0.00012979,2]
[327005974,1715705442379,-1225.34,0.00012979,2]
[327005975,1715705442389,-1225.34,0.00012979,2]
[327005976,1715705442399,-1225.34,0.00012979,2]
[327005977,1715705442409,-500.0,0.00012979,2]
[327005978,1715705442418,-500.0,0.00012979,2]
[327005979,1715705442428,-573.1,0.00012979,2]
[327005980,1715705442437,-500.0,0.00012979,2]
[327005981,1715705442446,-500.0,0.00012979,2]
[327005982,1715705442455,-500.0,0.00012979,2]
[327005983,1715705442464,-500.0,0.00012979,2]
[327005984,1715705442473,-500.0,0.00012979,2]
[327005985,1715705442483,-500.0,0.00012979,2]
[327005986,1715705442492,-500.0,0.00012979,2]
[327005987,1715705442501,-500.0,0.00012979,2]
[327005988,1715705442511,-500.0,0.00012979,2]
[327005989,1715705442520,-500.0,0.00012979,2]
[327005990,1715705442529,-500.0,0.00012979,2]
[327005991,1715705442538,-500.0,0.00012979,2]
[327005992,1715705442548,-512.3,0.00012979,2]
[327005993,1715705442557,-512.3,0.00012979,2]
[327005994,1715705442566,-512.3,0.00012979,2]
[327005995,1715705442575,-500.0,0.00012979,2]
[327005996,1715705442585,-500.0,0.00012979,2]
[327005997,1715705442595,-500.0,0.00012979,2]
[327005998,1715705442607,-500.0,0.00012979,2]
[327005999,1715705442616,-568.99509572,0.00012979,2]
[327006000,1715705442626,-500.0,0.00012979,2]
[327006001,1715705442635,-1013.03,0.00012979,2]
[327006002,1715705442644,-1013.03,0.00012979,2]
[327006003,1715705442654,-1013.03,0.00012979,2]
[327006004,1715705442663,-500.0,0.00012979,2]
[327006006,1715705442672,-500.0,0.00012979,2]
[327006008,1715705442682,-500.0,0.00012979,2]
[327006010,1715705442691,-500.0,0.00012979,2]
[327006011,1715705442700,-500.0,0.00012979,2]
[327006012,1715705442709,-500.0,0.00012979,2]
[327006013,1715705442723,-500.0,0.00012979,2]
[327006014,1715705442733,-500.0,0.00012979,2]
[327006015,1715705442742,-500.0,0.00012979,2]
[327006016,1715705442751,-500.0,0.00012979,2]
[327006017,1715705442762,-500.0,0.00012979,2]
[327006018,1715705442771,-611.1,0.00012979,2]
[327006019,1715705442781,-500.0,0.00012979,2]
[327006020,1715705442790,-500.0,0.00012979,2]
[327006021,1715705442801,-500.0,0.00012979,2]
[327006022,1715705442811,-500.0,0.00012979,2]
[327006023,1715705442820,-252.76,0.00012979,2]
[327006024,1715705442830,-654.59,0.00012979,2]
[327006026,1715705442839,-654.59,0.00012979,2]
[327006027,1715705442849,-654.59,0.00012979,2]
[327006028,1715705442862,-654.59,0.00012979,2]
[327006029,1715705442872,-500.0,0.00012979,2]
[327006030,1715705442881,-500.0,0.00012979,2]
[327006031,1715705442891,-500.0,0.00012979,2]
[327006032,1715705442900,-500.0,0.00012979,2]
[327006033,1715705442910,-688.53,0.00012979,2]
[327006034,1715705442919,-688.53,0.00012979,2]
[327006035,1715705442929,-688.53,0.00012979,2]
[327006036,1715705442938,-602.73,0.00012979,2]
[327006037,1715705442948,-602.73,0.00012979,2]
[327006038,1715705442958,-602.73,0.00012979,2]
[327006039,1715705442968,-602.73,0.00012979,2]
[327006040,1715705442977,-500.0,0.00012979,2]
[327006041,1715705442986,-500.0,0.00012979,2]
[327006042,1715705442995,-500.0,0.00012979,2]
[327006043,1715705443005,-500.0,0.00012979,2]
[327006044,1715705443014,-500.0,0.00012979,2]
[327006045,1715705443024,-500.0,0.00012979,2]
[327006046,1715705443033,-500.0,0.00012979,2]
[327006047,1715705443043,-500.0,0.00012979,2]
[327006048,1715705443053,-500.0,0.00012979,2]
[327006049,1715705443064,-500.0,0.00012979,2]
[327006050,1715705443074,-500.0,0.00012979,2]
[327006051,1715705443083,-500.0,0.00012979,2]
[327006052,1715705443092,-500.0,0.00012979,2]
[327006053,1715705443105,-500.0,0.00012979,2]
[327006054,1715705443114,-500.0,0.00012979,2]
[327006055,1715705443123,-500.0,0.00012979,2]
[327006056,1715705443133,-500.0,0.00012979,2]
[327006057,1715705443142,-500.0,0.00012979,2]
[327006058,1715705443152,-500.0,0.00012979,2]
[327006059,1715705443161,-500.0,0.00012979,2]
[327006060,1715705443171,-500.0,0.00012979,2]
[327006061,1715705443180,-500.0,0.00012979,2]
[327006062,1715705443190,-363.55297529,0.00012979,2]
[327006063,1715705443199,-500.0,0.00012979,2]
[327006064,1715705443209,-216.5,0.00012979,2]
[327006065,1715705443218,-500.0,0.00012979,2]
[327006066,1715705443227,-500.0,0.00012979,2]
[327006067,1715705443237,-500.0,0.00012979,2]
[327006068,1715705443247,-1034.0,0.00012979,2]
[327006069,1715705443257,-500.0,0.00012979,2]
[327006070,1715705443266,-1034.0,0.00012979,2]
[327006071,1715705443276,-482.00465041,0.00012979,2]
[327006072,1715705443285,-1034.0,0.00012979,2]
[327006073,1715705443295,-1980.12,0.00012979,2]
[327006074,1715705443304,-1980.12,0.00012979,2]
[327006075,1715705443313,-1980.12,0.00012979,2]
[327006076,1715705443323,-312.525911,0.00012979,2]
[327006077,1715705443332,-121.95536959,0.00012979,2]
[327006078,1715705443348,-1858.16463041,0.00012979,2]
[327006079,1715705443363,-500.0,0.00012979,2]
[327006080,1715705443372,-500.0,0.00012979,2]
[327006081,1715705443382,-169.86036959,0.00012979,2]
[327006084,1715705443401,-330.13963041,0.00012979,2]
[327006085,1715705443410,-206.27874241,0.00012979,2]
[327006088,1715705443421,-106.24716859,0.00012979,2]
[327006089,1715705443431,-151.0,0.00012979,2]
[327006090,1715705443440,-500.0,0.00012979,2]
[327006091,1715705443449,-500.0,0.00012979,2]
[327006092,1715705443458,-500.0,0.00012979,2]
[327006093,1715705443468,-614.37,0.00012979,2]
[327006094,1715705443477,-151.0,0.00012979,2]
[327006095,1715705443487,-614.37,0.00012979,2]
[327006096,1715705443496,-614.37,0.00012979,2]
[327006097,1715705443505,-614.37,0.00012979,2]
[327006098,1715705443515,-500.0,0.00012979,2]
[327006099,1715705443525,-500.0,0.00012979,2]
[327006100,1715705443535,-500.0,0.00012979,2]
[327006101,1715705443544,-500.0,0.00012979,2]
[327006102,1715705443555,-500.0,0.00012979,2]
[327006103,1715705443565,-500.0,0.00012979,2]
[327006104,1715705443575,-5242.67,0.00012979,2]
[327006105,1715705443585,-5242.67,0.00012979,2]
[327006106,1715705443595,-5242.67,0.00012979,2]
[327006107,1715705443608,-151.0,0.00012979,2]
[327006108,1715705443617,-2895.47470757,0.00012979,2]
[327006109,1715705443629,-409.91529243,0.00012979,2]
[327006110,1715705443638,-3305.39,0.00012979,2]
[327006111,1715705443647,-1284.69470757,0.00012979,2]
[327006112,1715705443658,-2020.69529243,0.00012979,2]
[327006113,1715705443668,-214.81638101,0.00012979,2]
[327006114,1715705444137,-500.0,0.00012972,2]
[327006115,1715705444147,-849.43,0.00012973,2]
[327006116,1715705444157,-61.61387231,0.00012973,2]
[327006117,1715705444171,-313.07311022,0.00012973,2]
[327006118,1715705444180,-292.57252304,0.00012979,2]
[327006119,1715705444192,-2798.00109595,0.00012979,2]
[327006120,1715705444201,-225.90227076,0.00012979,2]
[327006121,1715705444211,-154.65741,0.00012979,2]
[327006122,1715705444220,-151.0,0.00012979,2]
[327006123,1715705444229,-500.0,0.00012979,2]
[327006124,1715705444238,-500.0,0.00012979,2]
[327006125,1715705444248,-500.0,0.00012979,2]
[327006126,1715705444257,-500.0,0.00012979,2]
[327006127,1715705444267,-500.0,0.00012979,2]
[327006128,1715705444276,-500.0,0.00012979,2]
[327006129,1715705444285,-1071.44,0.00012979,2]
[327006130,1715705444294,-1071.44,0.00012979,2]
[327006131,1715705444304,-1071.44,0.00012979,2]
[327006132,1715705444313,-501.18,0.00012979,2]
[327006133,1715705444322,-501.18,0.00012979,2]
[327006134,1715705444331,-501.18,0.00012979,2]
[327006135,1715705444341,-500.0,0.00012979,2]
[327006136,1715705444350,-500.0,0.00012979,2]
[327006137,1715705444363,-299.28,0.00012979,2]
[327006138,1715705444373,-500.0,0.00012979,2]
[327006139,1715705444381,-500.0,0.00012979,2]
[327006140,1715705444390,-500.0,0.00012979,2]
[327006141,1715705444399,-500.0,0.00012979,2]
[327006142,1715705444408,-500.0,0.00012979,2]
[327006143,1715705444417,-502.94106843,0.00012979,2]
[327006144,1715705444426,-500.0,0.00012979,2]
[327006145,1715705444435,-500.0,0.00012979,2]
[327006146,1715705444444,-500.0,0.00012979,2]
[327006147,1715705444453,-500.0,0.00012979,2]
[327006148,1715705444462,-500.0,0.00012979,2]
[327006149,1715705444472,-58.08270284,0.00012979,2]
[327006150,1715705444507,-441.91729716,0.00012979,2]
[327006151,1715705444516,-414.87827873,0.00012979,2]
[327006152,1715705444527,-85.12172127,0.00012979,2]
[327006153,1715705444537,-500.0,0.00012979,2]
[327006154,1715705444546,-500.0,0.00012979,2]
[327006155,1715705444555,-500.0,0.00012979,2]
[327006156,1715705444564,-500.0,0.00012979,2]
[327006157,1715705444573,-500.0,0.00012979,2]
[327006158,1715705444582,-500.0,0.00012979,2]
[327006159,1715705444591,-500.0,0.00012979,2]
[327006160,1715705444600,-500.0,0.00012979,2]
[327006161,1715705444612,-500.0,0.00012979,2]
[327006162,1715705444621,-500.0,0.00012979,2]
[327006163,1715705444631,-500.0,0.00012979,2]
[327006164,1715705444641,-849.43,0.00012979,2]
[327006165,1715705444649,-849.43,0.00012979,2]
[327006166,1715705444659,-849.43,0.00012979,2]
[327006167,1715705444668,-537.0,0.0001298,2]
[327006168,1715705444678,-304.08119913,0.0001298,6]
[327006169,1715705444689,-348.04079335,0.0001298,6]
[327006170,1715705444700,-392.29490377,0.0001298,6]
[327006171,1715705444712,-401.92462,0.0001298,6]
[327006172,1715705444724,-357.69482547,0.0001298,6]
[327006173,1715705444738,-609.25,0.0001298,6]
[327006177,1715705445809,-19409.98507011,0.0001298,6]
[327006178,1715705445821,-469.65,0.0001298,6]
[327006179,1715705445877,-275.919,0.0001298,6]
[327006180,1715705445888,-350.85670494,0.0001298,6]
[327006181,1715705445900,-2030.81171266,0.0001298,6]
[327006182,1715705446074,-640.7472672,0.0001298,6]
[327006183,1715705446087,-311.10058853,0.0001298,6]
[327006184,1715705446131,-369.60557674,0.00012973,2]
[327006185,1715705446143,-141.11634454,0.00012973,2]
[327006186,1715705446152,-500.0,0.00012973,2]
[327006187,1715705446161,-6112.69279021,0.0001298,6]
[327006188,1715705446173,-757.25445626,0.0001298,6]
[327006189,1715705446184,-564.412,0.0001298,6]
[327006190,1715705446195,-499.33547419,0.0001298,6]
[327006191,1715705446207,-1536.4,0.0001298,6]
[327006192,1715705446218,-21151.18956106,0.0001298,6]
[327006193,1715705446230,-1020.83631643,0.0001298,6]
[327006194,1715705446241,-378.79104645,0.0001298,6]
[327006195,1715705446252,-389.63124367,0.0001298,6]
[327006196,1715705446264,-750.52233814,0.0001298,6]
[327006197,1715705446275,-3920.780729,0.0001298,6]
[327006199,1715705670265,200.0,0.00011,2]
[327006200,1715705737378,1285.20152074,8.25e-05,2]
[327006201,1715705737864,180.08952442,0.00011,2]
[327006202,1715705737897,906.32395484,0.00011,2]
[327006203,1715705737919,4000.0,0.00011,2]
[327006204,1715705737941,4000.0,0.00011,2]
[327006205,1715705737963,4000.0,0.00011,2]
[327006206,1715705737986,4000.0,0.00011,2]
[327006207,1715705738008,4000.0,0.00011,2]
[327006208,1715705738031,4000.0,0.00011,2]
[327006209,1715705738053,4000.0,0.00011,2]
[327006210,1715705738075,4000.0,0.00011,2]
[327006211,1715705738098,4000.0,0.00011,2]
[327006212,1715705738120,4000.0,0.00011,2]
[327006213,1715705738142,4000.0,0.00011,2]
[327006214,1715705738167,4000.0,0.00011,2]
[327006215,1715705738188,4000.0,0.00011,2]
[327006216,1715705738210,4000.0,0.00011,2]
[327006217,1715705738231,4000.0,0.00011,2]
[327006218,1715705738252,4000.0,0.00011,2]
[327006224,1715706103448,-155.0,0.00010407,2]
[327006225,1715706103470,-2220.98098245,0.00010407,2]
[327006226,1715706120573,623.1570546,0.00010407,2]
[327006227,1715706128256,1000.86196295,0.00010356,2]
[327006228,1715706128279,3481.03002705,0.00010356,2]
[327006229,1715706143363,518.96997295,0.00010407,2]
[327006230,1715706143386,778.16072102,0.00010407,2]
[327006231,1715706143935,3221.83927898,0.00010407,2]
[327006232,1715706143957,4000.0,0.00010407,2]
[327006233,1715706143980,290.40029886,0.00010407,2]
[327006234,1715706148274,155.0,0.00010406,2]
[327006236,1715706163171,523.06354382,0.00010406,2]
[327006237,1715706169425,3006.7350034,0.00010407,2]
[327006238,1715706178461,24.80115392,0.00010406,2]
[327006239,1715706178487,155.2883705,0.00010406,2]
[327006241,1715706190408,3844.7116295,0.00010406,2]
[327006242,1715706190431,4000.0,0.00010406,2]
[327006243,1715706190452,4000.0,0.00010406,2]
[327006244,1715706190473,4000.0,0.00010406,2]
[327006245,1715706190499,4000.0,0.00010406,2]
[327006246,1715706190520,4000.0,0.00010406,2]
[327006247,1715706190541,4000.0,0.00010406,2]
[327006248,1715706190562,4000.0,0.00010406,2]
[327006249,1715706190582,4000.0,0.00010406,2]
[327006250,1715706190603,4000.0,0.00010406,2]
[327006251,1715706216663,-600.0,0.00010406,2]
[327006253,1715706247414,2409.97938712,7.805e-05,2]
[327006254,1715706259109,-174.93,8.955e-05,2]
[327006255,1715706259132,-425.07,0.00010405,2]
[327006256,1715706548293,-155.0,8.664e-05,2]
[327006257,1715706548313,-84.38793895,8.665e-05,2]
[327006259,1715706589657,-66.14206105,8.665e-05,2]
[327006260,1715706589679,-168.37339461,0.00010299,2]
[327006261,1715706589700,-365.48454434,0.00010392,2]